{"text_format":"1","workbook":"xlsx","n_sheets":4,"sheets":["INSTRUÇÕES (Leia-me)","1 - Preenchimento do plano","2 - Plano para impressão","3 - Justificativa membro ext."],"not_rendered":{"charts":0,"images":3,"macros":1,"external_links":0,"defined_names":5,"comments":0,"pivot_tables":0},"unopened":[],"bounds":{"document_bytes":16777216,"sheet_cells":100000,"rows_first":2000,"rows_last":500,"rows_between":2000,"halvings":0,"cell_chars":16384,"cell_head_chars":4096},"cells_cut":0,"cells_raw":0,"read":"whole","date_system":"1900"}

{"sheet":"INSTRUÇÕES (Leia-me)","index":0,"n_rows":0,"n_cols":0,"rows_kept":0,"cut":false,"hidden":false,"merged":[]}

{"sheet":"1 - Preenchimento do plano","index":1,"n_rows":115,"n_cols":24,"rows_kept":115,"cut":false,"hidden":false,"merged":[[7,16,7,17],[8,16,8,17],[9,16,9,17],[10,16,10,17],[11,16,11,17],[10,1,10,2],[1,1,5,16],[97,3,97,7],[91,3,91,7],[9,5,9,7],[10,5,10,7],[96,3,96,7],[94,3,94,7],[93,3,93,7],[92,3,92,7],[95,3,95,7],[8,5,8,10],[9,8,9,10],[10,8,10,10],[12,16,12,17],[13,16,13,17],[98,3,98,7],[110,3,110,4],[114,3,114,4],[106,3,106,4],[107,3,107,4],[108,3,108,4],[111,3,111,4],[112,3,112,4],[109,3,109,4],[101,3,101,4],[103,3,103,4],[102,3,102,4],[104,3,104,4],[105,3,105,4]]}
[]
[null,"INSTRUÇÕES PARA PREENCHIMENTO: Só é permitido o preenchimento nas células em amarelo. Ao selecionar a célula, informações sobre o preenchimento serão mostradas em caixas de texto. Inconsistências ou erros serão mostrados em alertas em vermelho. Após o preenchimento, conferir no fim da planília para verificação final no Quadro de verificações. Caso tudo estiver correto, abrir a planília \"plano para impressão\" para imprimir o documento para assinatura. Se o terceiro membro do comitê de orientação for externo à UDESC, preencher também a planilia \"3-Justificativa membro ext.\" para assinatura e entrega anexa ao plano."]
[]
[]
[]
[]
[]
[null,"NOME:",null,null,null,null,null,null,null,null,null,{"$f":"ISBLANK(C8)","v":true},{"$f":"N(L8)","v":1},null,null,null,{"$f":"IF(M8=0,\"\",\"preencher nome\")","v":"preencher nome"}]
[null,"MATRÍCULA:",null,null,null,"INGRESSO NO CURSO",null,null,null,null,null,{"$f":"ISBLANK(C9)","v":true},{"$f":"N(L9)","v":1},null,null,null,{"$f":"IF(M9=0,\"\",\"preencher matrícula\")","v":"preencher matrícula"}]
[null,null,null,null,null,"Ano:",null,null,null,null,null,{"$f":"ISBLANK(I10)","v":true},1,null,null,null,{"$f":"IF(M10=0,\"\",\"preencher ano\")","v":"preencher ano"},null,null,null,null,null,null,{"$f":"I10","v":0}]
[null,"COMITÊ DE ORIENTAÇÃO",null,null,null,"Semestre:",null,null,null,null,null,{"$f":"ISBLANK(I11)","v":true},1,null,null,null,{"$f":"IF(M11=0,\"\",\"preencher semestre\")","v":"preencher semestre"},null,null,null,null,null,null,{"$f":"I11","v":0}]
[null,"Orientador:",null,null,null,null,null,null,null,null,null,{"$f":"ISBLANK(C12)","v":true},1,null,null,null,{"$f":"IF(M12=0,\"\",\"preencher orientador\")","v":"preencher orientador"}]
[null,"2º Membro:",null,null,null,null,null,null,null,null,null,{"$f":"ISBLANK(C13)","v":true},1,null,null,null,{"$f":"IF(M13=0,\"\",\"preencher orientador substituto\")","v":"preencher orientador substituto"}]
[null,"3º Membro:",null,null,null,null,null,null,null,null,null,{"$f":"ISBLANK(C14)","v":true},1,null,null,null,{"$f":"IF(M14=0,\"\",\"preencher membro do comitê\")","v":"preencher membro do comitê"}]
[]
[null,null,null,"Carga Horária","Créditos","Semestre 1","Semestre 2","Semestre 3","Semestre 4","Aproveitamento ou Validação","dispensa de ESTDOC e INGLES",null,null,null,"creditos obtidos",null,"STATUS"]
[]
[null,"Código","DISCIPLINAS OBRIGATÓRIAS"]
[null,"GMS010","Gênese, Morfologia e Classificação de Solos",60,4,null,null,null,null,null,null,{"$f":"SUM(F19:J19)","v":0},{"$f":"SUM(F19:J19)","v":0},null,{"$f":"L19*E19","v":0},null,{"$f":"IF(M19=1,\"OK\",\"não\")","v":"não"}]
[null,"MCP050","Metodologia Científica e da Pesquisa",30,2,null,null,null,null,null,null,{"$f":"SUM(F20:J20)","v":0},0,null,0,null,"não"]
[null,"SEMPMS","Seminarios - Presença",30,0,null,null,null,null,null,null,{"$f":"SUM(F21:I21)","v":0},0,null,0,null,"não"]
[null,"SEM200","Seminários - Apresentador",30,2,null,null,null,null,null,null,{"$f":"SUM(F22:I22)","v":0},{"$f":"SUM(F22:J22)","v":0},null,0,null,"não"]
[null,"INGLES","Exame de proficiência em Língua Inglesa",0,0,null,null,null,null,null,null,{"$f":"SUM(F23+G23+H23+I23)","v":0},{"$f":"SUM(F23+G23+H23+I23+K23)","v":0},null,0,null,"não"]
[null,"ESTDOC","Estágio em docência",30,2,null,null,null,null,null,null,{"$f":"SUM(F24+G24+H24+I24)","v":0},{"$f":"SUM(F24+G24+H24+I24+K24)","v":0},null,0,null,"não"]
[null,null,null,null,null,null,null,null,null,null,null,null,{"$f":"SUM(M19:M24)","v":0},null,{"$f":"SUM(O19:O24)","v":0}]
[]
[null,"Código","DISCIPLINAS DA ÁREA DE CONCENTRAÇÃO"]
[null,"ASISPA","Água no Sistema Solo-Planta-Atmosfera",60,4,null,null,null,null,null,null,{"$f":"SUM(F28:J28)","v":0},{"$f":"SUM(F28:J28)","v":0},null,{"$f":"L28*E28","v":0},null,{"$f":"IF(M28=0,\"\",IF(M28=1,\"OK\",IF(M28>1,\"não\")))","v":""}]
[null,"BRA140","Biodegradação de Resíduos Agrícolas e Industriais",60,4,null,null,null,null,null,null,0,0,null,0,null,{"$f":"IF(M29=0,\"\",IF(M29=1,\"OK\",IF(M29>1,\"não\")))","v":""}]
[null,"BIO060","Biologia do Solo",60,4,null,null,null,null,null,null,0,0,null,0,null,""]
[null,"ETOPOI","Ecotoxicologia de Poluentes Inorgânicos ",30,2,null,null,null,null,null,null,0,0,null,0,null,""]
[null,"FER040","Fertilidade do Solo",60,4,null,null,null,null,null,null,0,0,null,0,null,""]
[null,"FIS030","Física do Solo",60,4,null,null,null,null,null,null,{"$f":"SUM(F33:J33)","v":0},0,null,0]
[null,"FIVEMS","Fisiologia Vegetal",60,4,null,null,null,null,null,null,0,0,null,0,null,""]
[null,"HIDROL","Hidrologia",60,4,null,null,null,null,null,null,0,0,null,0,null,""]
[null,"LSO120","Levantamento de Solos",60,4,null,null,null,null,null,null,0,0,null,0,null,""]
[null,"MSO010","Manejo do Solo",60,4,null,null,null,null,null,null,0,0,null,0,null,""]
[null,"MAMBIS","Métodos de Análise em Microbiologia e Bioquímica do Solo",60,4,null,null,null,null,null,null,0,0,null,0,null,""]
[null,"MATORS","Matéria Orgânica do Solo",60,4,null,null,null,null,null,null,{"$f":"SUM(F39:J39)","v":0},{"$f":"SUM(F39:J39)","v":0},null,{"$f":"L39*E39","v":0},null,{"$f":"IF(M39=0,\"\",IF(M39=1,\"OK\",IF(M39>1,\"não\")))","v":""}]
[null,"MINSOL","Mineralogia do Solo",30,2,null,null,null,null,null,null,0,0,null,0,null,""]
[null,"QSO020","Química do Solo",60,4,null,null,null,null,null,null,{"$f":"SUM(F41:J41)","v":0},0,null,0]
[null,"RECADE","Recuperação de Áreas Degradadas",60,4,null,null,null,null,null,null,0,0,null,0,null,""]
[null,"REPLAM","Relação Planta Microrganismos",60,4,null,null,null,null,null,null,{"$f":"SUM(F43:J43)","v":0},{"$f":"SUM(F43:J43)","v":0},null,{"$f":"L43*E43","v":0},null,{"$f":"IF(M43=0,\"\",IF(M43=1,\"OK\",IF(M43>1,\"não\")))","v":""}]
[null,"RESOLP","Relação Solo-Planta",30,2,null,null,null,null,null,null,0,0,null,0,null,""]
[null,"UCS070","Uso e Conservação do Solo",60,4,null,null,null,null,null,null,0,0,null,0,null,""]
[null,"TST170","Técnicas de Análise Química de Solo e Tecido Vegetal",60,4,null,null,null,null,null,null,0,0,null,0,null,""]
[null,"TES160","Tópicos Especiais em Ciência do Solo - TECS",30,2,null,null,null,null,null,null,0,0,null,0,null,{"$f":"IF(M47=0,\"\",\"OK\")","v":""}]
[null,"TESAED","TECS - Análise Estatística de Dados Utilizando o Programa SAS",30,2,null,null,null,null,null,null,{"$f":"SUM(F48:J48)","v":0},{"$f":"SUM(F48:J48)","v":0},null,{"$f":"L48*E48","v":0}]
[null,"TESBSO","TECS - Biologia do Solo",30,2,null,null,null,null,null,null,0,0,null,0]
[null,"TESDFS","TECS - Dinâmica de fósforo no solo e ambiente",30,2,null,null,null,null,null,null,{"$f":"SUM(F50:J50)","v":0},{"$f":"SUM(F50:J50)","v":0},null,0]
[null,"TESEAC","TECS - Estatística Aplicada ao Estudo de Caso",30,2,null,null,null,null,null,null,0,0,null,0]
[null,"TESETN","TECS - Etnopedologia",30,2,null,null,null,null,null,null,0,0,null,0]
[null,"TECSPR","TECS - Extensão Universitária em C. A.agrárias - Projeto Rondon",30,2,null,null,null,null,null,null,{"$f":"SUM(F53:J53)","v":0},{"$f":"SUM(F53:J53)","v":0},null,{"$f":"L53*E53","v":0}]
[null,"TESFAE","TECS - Fauna Edáfica",30,2,null,null,null,null,null,null,0,0,null,0]
[null,"TESFIS","TECS - Física do Solo",30,2,null,null,null,null,null,null,0,0,null,0]
[null,"TESFIC","TECS - Física /Compactação",30,2,null,null,null,null,null,null,0,0,null,0]
[null,"TESGMP","TECS - Geoquímica de Metais Pesados",30,2,null,null,null,null,null,null,0,0,null,0]
[null,"TESGMM","TECS - Geoquímica de Metais Pesados e Metalóides",30,2,null,null,null,null,null,null,0,0,null,0]
[null,"TESHDR","TECS -Hidrologia",30,2,null,null,null,null,null,null,0,0,null,0]
[null,"TESLCS","TECS - Levantamento e Classificação do Solo",30,2,null,null,null,null,null,null,0,0,null,0]
[null,"TESMAB","TECS - Métodos Analíticos de Biologia do Solo",30,2,null,null,null,null,null,null,0,0,null,0]
[null,"TESMAM","TECS - Métodos Analíticos em Microbiologia do Solo",30,2,null,null,null,null,null,null,0,0,null,0]
[null,"TESMIA","TECS - Mineralogia das Argilas",30,2,null,null,null,null,null,null,{"$f":"SUM(F63:J63)","v":0},{"$f":"SUM(F63:J63)","v":0},null,{"$f":"L63*E63","v":0}]
[null,"TESMIS","TECS - Mineralogia do Solo",30,2,null,null,null,null,null,null,0,0,null,0]
[null,"TESNIQ","TECS - Nivelamento em Química",30,2,null,null,null,null,null,null,0,0,null,0]
[null,"TESNMF","TECS - Nutrição Mineral de Frutíferas",30,2,null,null,null,null,null,null,0,0,null,0]
[null,"TESPEH","TECS - Pesquisas em Erosão Hídrica",30,2,null,null,null,null,null,null,{"$f":"SUM(F67:J67)","v":0},{"$f":"SUM(F67:J67)","v":0},null,{"$f":"L67*E67","v":0}]
[null,"TESTPE","TECS - Técnicas de Pesquisa em Erosão",30,2,null,null,null,null,null,null,0,0,null,0]
[null,"TESTRT","TECS - Técnicas de Redação e de Apresentação de Trabalhos Científicos",30,2,null,null,null,null,null,null,0,0,null,0]
[null,"TESUCS","TECS - Uso e Conservação do Solo",30,2,null,null,null,null,null,null,0,0,null,0]
[null,"TCSADE","TECS (Análise de Dados em Ecologia - Modelos Lineares General.)",30,2,null,null,null,null,null,null,{"$f":"SUM(F71:J71)","v":0},{"$f":"SUM(F71:J71)","v":0},null,{"$f":"L71*E71","v":0}]
[null,"TECSAP","TECS - Aplicada à Produção Florestal",30,2,null,null,null,null,null,null,0,0,null,0,null,""]
[null,"TESARC","TECS -  Avaliação de Risco Ecológico de Locais Contaminados",30,2,null,null,null,null,null,null,{"$f":"SUM(F73:J73)","v":0},{"$f":"SUM(F73:J73)","v":0},null,{"$f":"L73*E73","v":0}]
[null,"TESEAR","TECS - Ecotoxicologia e Análise de Risco Ecológico",30,2,null,null,null,null,null,null,0,0,null,0]
[null,"TCSUEM","TECS - A Utilização de Ensaios em Mesocosmos como Ferram...",30,2,null,null,null,null,null,null,0,0,null,0]
[null,"TESMAF","TECS - Métodos de Análises Físicas",30,2,null,null,null,null,null,null,0,0,null,0,null,{"$f":"IF(M76=0,\"\",\"OK\")","v":""}]
[null,null,null,null,null,null,null,null,null,null,null,null,null,null,{"$f":"SUM(O28:O76)","v":0}]
[]
[null,"Código","DISCIPLINAS DE FORMAÇÃO COMPLEMENTAR"]
[null,"ESTATI","Estatística - Nivelamento",30,2,null,null,null,null,null,null,{"$f":"SUM(F80:J80)","v":0},{"$f":"SUM(F80:J80)","v":0},null,{"$f":"L80*E80","v":0},null,{"$f":"IF(M80=0,\"\",IF(M80=1,\"OK\",IF(M80>1,\"não\")))","v":""}]
[null,"REDATC","Redação e Apresentação de Trabalhos Científicos",30,2,null,null,null,null,null,null,0,0,null,0,null,""]
[null,"ESTEAM","Estatística Experimental e Análise Multivariada",60,4,null,null,null,null,null,null,0,0,null,0,null,""]
[null,"FMAPLA","Fundamentos do Manejo de Plantas de Lavoura",60,4,null,null,null,null,null,null,0,0,null,0,null,""]
[null,"METENS","Metodologia do Ensino Superior",60,4,null,null,null,null,null,null,0,0,null,0,null,""]
[null,"MOBAPA","Modelos Biométricos Aplicados à Agronomia",60,4,null,null,null,null,null,null,0,0,null,0,null,""]
[null,null,null,null,null,null,null,null,null,null,null,null,null,null,{"$f":"SUM(O80:O85)","v":0}]
[]
[null,"Código","DISCIPLINA PARA MANTER-SE MATRICULADO NO CURSO"]
[null,"DISSER","Elaboração de dissertação",0,0,null,null,null,null,null,null,null,null,null,0]
[]
[null,null,"DISCIPLINAS COM OUTRAS NOMENCLATURAS CURSADAS EM OUTROS PPG´s A SEREM VALIDADAS"]
[null,null,"Nome da disciplina","número de créditos"]
[null,null,null,null,null,null,null,null,null,null,null,null,{"$f":"D93","v":0},{"$f":"D93","v":0},{"$f":"D93","v":0},null,{"$f":"IF(N93=0,\"\",IF(N93>0,\"OK\"))","v":""}]
[null,null,null,null,null,null,null,null,null,null,null,null,{"$f":"D94","v":0},0,{"$f":"D94","v":0},null,""]
[null,null,null,null,null,null,null,null,null,null,null,null,0,0,0,null,""]
[null,null,null,null,null,null,null,null,null,null,null,{"$f":"M19","v":0},0,0,0,null,""]
[null,null,null,null,null,null,null,null,null,null,null,{"$f":"M21+M22","v":0},0,0,0,null,""]
[null,null,null,null,null,null,null,null,null,null,null,{"$f":"M20+M24","v":0},0,0,0,null,""]
[null,null,null,null,null,null,null,null,null,"Total créditos:",null,{"$f":"O25+O77+O86+N100","v":0},null,null,{"$f":"L99","v":0}]
[null,null,null,null,{"$f":"IF(F19+F20+F21+F22+F24+F28+F29+F30+F31+F32+F34+F35+F36+F37+F38+F39+F40+F42+F43+F44+F45+F46+F47+F72+F76+F80+F81+F82+F83+F84+F85+F89>0,\"1\",\"0\")","v":"0"},{"$f":"IF(G19+G20+G21+G22+G24+G28+G29+G30+G31+G32+G34+G35+G36+G37+G38+G39+G40+G42+G43+G44+G45+G46+G47+G72+G76+G80+G81+G82+G83+G84+G85+G89>0,\"1\",\"0\")","v":"0"},{"$f":"IF(H19+H20+H21+H22+H24+H28+H29+H30+H31+H32+H34+H35+H36+H37+H38+H39+H40+H42+H43+H44+H45+H46+H47+H72+H76+H80+H81+H82+H83+H84+H85+H89>0,\"1\",\"0\")","v":"0"},{"$f":"IF(I19+I20+I21+I22+I24+I28+I29+I30+I31+I32+I34+I35+I36+I37+I38+I39+I40+I42+I43+I44+I45+I46+I47+I72+I76+I80+I81+I82+I83+I84+I85+I89>0,\"1\",\"0\")","v":"0"},null,null,null,null,null,{"$f":"SUM(N93:N98)","v":0}]
[]
[null,null,"QUADRO DE VERIFICAÇÕES","STATUS"]
[null,null,"Foi preenchido o nome?",{"$f":"IF(M8=0,\"OK\",\"não\")","v":"não"},null,null,null,null,null,null,null,{"$f":"J19*E19+J20*E20+J28*E28+J29*E29+J30*E30+J31*E31+J32*E32+J34*E34+J35*E35+J36*E36+J37*E37+J38*E38+J39*E39+J40*E40+J42*E42+J43*E43+J44*E44+J45*E45+J46*E46+J47*E47+J72*E72+J76*E76+J80*E80+J81*E81+J82*E82+J83*E83+J84*E84+J85*E85+D93+D94+D95+D96+D97+D98","v":0},{"$f":"N(D103=\"OK\")","v":0}]
[null,null,"Foi preenchido o número de matrícula?",{"$f":"IF(M9=0,\"OK\",\"não\")","v":"não"},null,null,null,null,null,null,null,null,0]
[null,null,"O Ano e semestre de ingresso foi preenchido?",{"$f":"IF(M10+M11=0,\"OK\",\"não\")","v":"não"},null,null,null,null,null,null,null,null,0]
[null,null,"O comitê de orientação está preenchido?",{"$f":"IF(M12+M13+M14=0,\"OK\",\"não\")","v":"não"},null,null,null,null,null,null,null,null,0]
[null,null,"Previu todas disciplinas obrigatórias da área de solos?",{"$f":"IF(L96=1,\"OK\",\"não\")","v":"não"},null,null,null,null,null,null,null,null,0]
[null,null,"Previu SEMPMS e SEM200?",{"$f":"IF(L97=2,\"OK\",\"não\")","v":"não"},null,null,null,null,null,null,null,null,0]
[null,null,"Previu MCP050 e ESTDOC?",{"$f":"IF(L98=2,\"OK\",\"não\")","v":"não"},null,null,null,null,null,null,null,null,0]
[null,null,"Previu exame de proeficiência em língua estrangeira?",{"$f":"IF(M23=1,\"OK\",\"não\")","v":"não"},null,null,null,null,null,null,null,null,{"$f":"N(Q23=\"OK\")","v":0}]
[null,null,"Disciplinas aproveitadas/validadas somam até 14 créditos?",{"$f":"IF(L103<15,\"OK\",\"não\")","v":"OK"},null,null,null,null,null,null,null,null,{"$f":"N(Q24=\"OK\")","v":0}]
[null,null,"Previu no mínimo 28 créditos?",{"$f":"IF(L99>27,\"OK\",\"não\")","v":"não"},null,null,null,null,null,null,null,null,{"$f":"N(D112=\"OK\")","v":0}]
[null,null,"Há matrícula em todos os semestres?",{"$f":"IF(E100+F100+G100+H100=4,\"OK\",\"não\")","v":"não"},null,null,null,null,null,null,null,null,{"$f":"N(D113=\"OK\")","v":0}]
[null,null,null,null,null,null,null,null,null,null,null,null,{"$f":"SUM(M103:M113)","v":0}]
[null,null,"IMPRIMIR PLANO?",{"$f":"IF(M114=11,\"SIM\",\"NÃO\")","v":"NÃO"}]

{"sheet":"2 - Plano para impressão","index":2,"n_rows":341,"n_cols":10,"rows_kept":341,"cut":false,"hidden":false,"merged":[]}
[]
[]
[]
[]
[]
[]
[]
[]
[]
[]
[]
[]
[]
[]
[null,"Nome:",{"$f":"'1 - Preenchimento do plano'!C8","v":0},null,null,"Matrícula:",{"$f":"'1 - Preenchimento do plano'!C9","v":0}]
[]
[null,"Comitê de Orientação"]
[null,"Orientador:",{"$f":"'1 - Preenchimento do plano'!C12","v":0},null,null,"Ingresso:",{"$f":"'1 - Preenchimento do plano'!X10","v":0},"/",{"$f":"'1 - Preenchimento do plano'!X11","v":0}]
[null,"2º Membro:",{"$f":"'1 - Preenchimento do plano'!C13","v":0}]
[null,"3º Membro:",{"$f":"'1 - Preenchimento do plano'!C14","v":0}]
[]
[null,"SEMESTRE","DISCIPLINA",null,null,"CÓDIGO","CH",null,"CRÉDITOS",{"$f":"A23*B24","v":{"$error":"#REF!"}}]
[{"$f":"'1 - Preenchimento do plano'!#REF!","v":{"$error":"#REF!"}},"DISCIPLINAS A SEREM CURSADAS DURANTE O CURSO",null,null,null,null,null,null,null,1]
[{"$f":"'1 - Preenchimento do plano'!#REF!","v":{"$error":"#REF!"}},1,{"$f":"'1 - Preenchimento do plano'!#REF!","v":{"$error":"#REF!"}},null,null,{"$f":"'1 - Preenchimento do plano'!#REF!","v":{"$error":"#REF!"}},{"$f":"'1 - Preenchimento do plano'!#REF!","v":{"$error":"#REF!"}},null,{"$f":"'1 - Preenchimento do plano'!#REF!","v":{"$error":"#REF!"}},{"$f":"A24*B24","v":{"$error":"#REF!"}}]
[{"$f":"'1 - Preenchimento do plano'!#REF!","v":{"$error":"#REF!"}},1,{"$f":"'1 - Preenchimento do plano'!#REF!","v":{"$error":"#REF!"}},null,null,{"$f":"'1 - Preenchimento do plano'!#REF!","v":{"$error":"#REF!"}},{"$f":"'1 - Preenchimento do plano'!#REF!","v":{"$error":"#REF!"}},null,{"$f":"'1 - Preenchimento do plano'!#REF!","v":{"$error":"#REF!"}},{"$f":"A25*B25","v":{"$error":"#REF!"}}]
[{"$f":"'1 - Preenchimento do plano'!F19","v":0},1,{"$f":"'1 - Preenchimento do plano'!C19","v":"Gênese, Morfologia e Classificação de Solos"},null,null,{"$f":"'1 - Preenchimento do plano'!B19","v":"GMS010"},{"$f":"'1 - Preenchimento do plano'!D19","v":60},null,{"$f":"'1 - Preenchimento do plano'!O19","v":0},0]
[{"$f":"'1 - Preenchimento do plano'!F20","v":0},1,{"$f":"'1 - Preenchimento do plano'!C20","v":"Metodologia Científica e da Pesquisa"},null,null,{"$f":"'1 - Preenchimento do plano'!B20","v":"MCP050"},{"$f":"'1 - Preenchimento do plano'!D20","v":30},null,{"$f":"'1 - Preenchimento do plano'!O20","v":0},0]
[{"$f":"'1 - Preenchimento do plano'!F21","v":0},1,{"$f":"'1 - Preenchimento do plano'!C21","v":"Seminarios - Presença"},null,null,{"$f":"'1 - Preenchimento do plano'!B21","v":"SEMPMS"},{"$f":"'1 - Preenchimento do plano'!D21","v":30},null,{"$f":"'1 - Preenchimento do plano'!O21","v":0},0]
[{"$f":"'1 - Preenchimento do plano'!F22","v":0},1,{"$f":"'1 - Preenchimento do plano'!C22","v":"Seminários - Apresentador"},null,null,{"$f":"'1 - Preenchimento do plano'!B22","v":"SEM200"},{"$f":"'1 - Preenchimento do plano'!D22","v":30},null,{"$f":"'1 - Preenchimento do plano'!O22","v":0},0]
[{"$f":"'1 - Preenchimento do plano'!F23","v":0},1,{"$f":"'1 - Preenchimento do plano'!C23","v":"Exame de proficiência em Língua Inglesa"},null,null,{"$f":"'1 - Preenchimento do plano'!B23","v":"INGLES"},{"$f":"'1 - Preenchimento do plano'!D23","v":0},null,{"$f":"'1 - Preenchimento do plano'!O23","v":0},0]
[{"$f":"'1 - Preenchimento do plano'!F24","v":0},1,{"$f":"'1 - Preenchimento do plano'!C24","v":"Estágio em docência"},null,null,{"$f":"'1 - Preenchimento do plano'!B24","v":"ESTDOC"},{"$f":"'1 - Preenchimento do plano'!D24","v":30},null,{"$f":"'1 - Preenchimento do plano'!O24","v":0},0]
[{"$f":"'1 - Preenchimento do plano'!F28","v":0},1,{"$f":"'1 - Preenchimento do plano'!C28","v":"Água no Sistema Solo-Planta-Atmosfera"},null,null,{"$f":"'1 - Preenchimento do plano'!B28","v":"ASISPA"},{"$f":"'1 - Preenchimento do plano'!D28","v":60},null,{"$f":"'1 - Preenchimento do plano'!O28","v":0},0]
[{"$f":"'1 - Preenchimento do plano'!F29","v":0},1,{"$f":"'1 - Preenchimento do plano'!C29","v":"Biodegradação de Resíduos Agrícolas e Industriais"},null,null,{"$f":"'1 - Preenchimento do plano'!B29","v":"BRA140"},{"$f":"'1 - Preenchimento do plano'!D29","v":60},null,{"$f":"'1 - Preenchimento do plano'!O29","v":0},0]
[{"$f":"'1 - Preenchimento do plano'!F30","v":0},1,{"$f":"'1 - Preenchimento do plano'!C30","v":"Biologia do Solo"},null,null,{"$f":"'1 - Preenchimento do plano'!B30","v":"BIO060"},{"$f":"'1 - Preenchimento do plano'!D30","v":60},null,{"$f":"'1 - Preenchimento do plano'!O30","v":0},0]
[{"$f":"'1 - Preenchimento do plano'!F31","v":0},1,{"$f":"'1 - Preenchimento do plano'!C31","v":"Ecotoxicologia de Poluentes Inorgânicos "},null,null,{"$f":"'1 - Preenchimento do plano'!B31","v":"ETOPOI"},{"$f":"'1 - Preenchimento do plano'!D31","v":30},null,{"$f":"'1 - Preenchimento do plano'!O31","v":0},0]
[{"$f":"'1 - Preenchimento do plano'!F32","v":0},1,{"$f":"'1 - Preenchimento do plano'!C32","v":"Fertilidade do Solo"},null,null,{"$f":"'1 - Preenchimento do plano'!B32","v":"FER040"},{"$f":"'1 - Preenchimento do plano'!D32","v":60},null,{"$f":"'1 - Preenchimento do plano'!O32","v":0},0]
[{"$f":"'1 - Preenchimento do plano'!F34","v":0},1,{"$f":"'1 - Preenchimento do plano'!C34","v":"Fisiologia Vegetal"},null,null,{"$f":"'1 - Preenchimento do plano'!B34","v":"FIVEMS"},{"$f":"'1 - Preenchimento do plano'!D34","v":60},null,{"$f":"'1 - Preenchimento do plano'!O34","v":0},0]
[{"$f":"'1 - Preenchimento do plano'!F35","v":0},1,{"$f":"'1 - Preenchimento do plano'!C35","v":"Hidrologia"},null,null,{"$f":"'1 - Preenchimento do plano'!B35","v":"HIDROL"},{"$f":"'1 - Preenchimento do plano'!D35","v":60},null,{"$f":"'1 - Preenchimento do plano'!O35","v":0},0]
[{"$f":"'1 - Preenchimento do plano'!F36","v":0},1,{"$f":"'1 - Preenchimento do plano'!C36","v":"Levantamento de Solos"},null,null,{"$f":"'1 - Preenchimento do plano'!B36","v":"LSO120"},{"$f":"'1 - Preenchimento do plano'!D36","v":60},null,{"$f":"'1 - Preenchimento do plano'!O36","v":0},0]
[{"$f":"'1 - Preenchimento do plano'!F37","v":0},1,{"$f":"'1 - Preenchimento do plano'!C37","v":"Manejo do Solo"},null,null,{"$f":"'1 - Preenchimento do plano'!B37","v":"MSO010"},{"$f":"'1 - Preenchimento do plano'!D37","v":60},null,{"$f":"'1 - Preenchimento do plano'!O37","v":0},0]
[{"$f":"'1 - Preenchimento do plano'!F38","v":0},1,{"$f":"'1 - Preenchimento do plano'!C38","v":"Métodos de Análise em Microbiologia e Bioquímica do Solo"},null,null,{"$f":"'1 - Preenchimento do plano'!B38","v":"MAMBIS"},{"$f":"'1 - Preenchimento do plano'!D38","v":60},null,{"$f":"'1 - Preenchimento do plano'!O38","v":0},0]
[{"$f":"'1 - Preenchimento do plano'!F39","v":0},1,{"$f":"'1 - Preenchimento do plano'!C39","v":"Matéria Orgânica do Solo"},null,null,{"$f":"'1 - Preenchimento do plano'!B39","v":"MATORS"},{"$f":"'1 - Preenchimento do plano'!D39","v":60},null,{"$f":"'1 - Preenchimento do plano'!O39","v":0},{"$f":"A42*B42","v":0}]
[{"$f":"'1 - Preenchimento do plano'!F40","v":0},1,{"$f":"'1 - Preenchimento do plano'!C40","v":"Mineralogia do Solo"},null,null,{"$f":"'1 - Preenchimento do plano'!B40","v":"MINSOL"},{"$f":"'1 - Preenchimento do plano'!D40","v":30},null,{"$f":"'1 - Preenchimento do plano'!O40","v":0},0]
[{"$f":"'1 - Preenchimento do plano'!F42","v":0},1,{"$f":"'1 - Preenchimento do plano'!C42","v":"Recuperação de Áreas Degradadas"},null,null,{"$f":"'1 - Preenchimento do plano'!B42","v":"RECADE"},{"$f":"'1 - Preenchimento do plano'!D42","v":60},null,{"$f":"'1 - Preenchimento do plano'!O42","v":0},0]
[{"$f":"'1 - Preenchimento do plano'!F43","v":0},1,{"$f":"'1 - Preenchimento do plano'!C43","v":"Relação Planta Microrganismos"},null,null,{"$f":"'1 - Preenchimento do plano'!B43","v":"REPLAM"},{"$f":"'1 - Preenchimento do plano'!D43","v":60},null,{"$f":"'1 - Preenchimento do plano'!O43","v":0},{"$f":"A45*B45","v":0}]
[{"$f":"'1 - Preenchimento do plano'!F44","v":0},1,{"$f":"'1 - Preenchimento do plano'!C44","v":"Relação Solo-Planta"},null,null,{"$f":"'1 - Preenchimento do plano'!B44","v":"RESOLP"},{"$f":"'1 - Preenchimento do plano'!D44","v":30},null,{"$f":"'1 - Preenchimento do plano'!O44","v":0},0]
[{"$f":"'1 - Preenchimento do plano'!F45","v":0},1,{"$f":"'1 - Preenchimento do plano'!C45","v":"Uso e Conservação do Solo"},null,null,{"$f":"'1 - Preenchimento do plano'!B45","v":"UCS070"},{"$f":"'1 - Preenchimento do plano'!D45","v":60},null,{"$f":"'1 - Preenchimento do plano'!O45","v":0},0]
[{"$f":"'1 - Preenchimento do plano'!F46","v":0},1,{"$f":"'1 - Preenchimento do plano'!C46","v":"Técnicas de Análise Química de Solo e Tecido Vegetal"},null,null,{"$f":"'1 - Preenchimento do plano'!B46","v":"TST170"},{"$f":"'1 - Preenchimento do plano'!D46","v":60},null,{"$f":"'1 - Preenchimento do plano'!O46","v":0},0]
[{"$f":"'1 - Preenchimento do plano'!F47","v":0},1,{"$f":"'1 - Preenchimento do plano'!C47","v":"Tópicos Especiais em Ciência do Solo - TECS"},null,null,{"$f":"'1 - Preenchimento do plano'!B47","v":"TES160"},{"$f":"'1 - Preenchimento do plano'!D47","v":30},null,{"$f":"'1 - Preenchimento do plano'!O47","v":0},0]
[{"$f":"'1 - Preenchimento do plano'!F48","v":0},1,{"$f":"'1 - Preenchimento do plano'!C48","v":"TECS - Análise Estatística de Dados Utilizando o Programa SAS"},null,null,{"$f":"'1 - Preenchimento do plano'!B48","v":"TESAED"},{"$f":"'1 - Preenchimento do plano'!D48","v":30},null,{"$f":"'1 - Preenchimento do plano'!O48","v":0},{"$f":"A50*B50","v":0}]
[{"$f":"'1 - Preenchimento do plano'!F49","v":0},1,{"$f":"'1 - Preenchimento do plano'!C49","v":"TECS - Biologia do Solo"},null,null,{"$f":"'1 - Preenchimento do plano'!B49","v":"TESBSO"},{"$f":"'1 - Preenchimento do plano'!D49","v":30},null,{"$f":"'1 - Preenchimento do plano'!O49","v":0},0]
[{"$f":"'1 - Preenchimento do plano'!F50","v":0},1,{"$f":"'1 - Preenchimento do plano'!C50","v":"TECS - Dinâmica de fósforo no solo e ambiente"},null,null,{"$f":"'1 - Preenchimento do plano'!B50","v":"TESDFS"},{"$f":"'1 - Preenchimento do plano'!D50","v":30},null,{"$f":"'1 - Preenchimento do plano'!O50","v":0},{"$f":"A52*B52","v":0}]
[{"$f":"'1 - Preenchimento do plano'!F51","v":0},1,{"$f":"'1 - Preenchimento do plano'!C51","v":"TECS - Estatística Aplicada ao Estudo de Caso"},null,null,{"$f":"'1 - Preenchimento do plano'!B51","v":"TESEAC"},{"$f":"'1 - Preenchimento do plano'!D51","v":30},null,{"$f":"'1 - Preenchimento do plano'!O51","v":0},0]
[{"$f":"'1 - Preenchimento do plano'!F52","v":0},1,{"$f":"'1 - Preenchimento do plano'!C52","v":"TECS - Etnopedologia"},null,null,{"$f":"'1 - Preenchimento do plano'!B52","v":"TESETN"},{"$f":"'1 - Preenchimento do plano'!D52","v":30},null,{"$f":"'1 - Preenchimento do plano'!O52","v":0},0]
[{"$f":"'1 - Preenchimento do plano'!F53","v":0},1,{"$f":"'1 - Preenchimento do plano'!C53","v":"TECS - Extensão Universitária em C. A.agrárias - Projeto Rondon"},null,null,{"$f":"'1 - Preenchimento do plano'!B53","v":"TECSPR"},{"$f":"'1 - Preenchimento do plano'!D53","v":30},null,{"$f":"'1 - Preenchimento do plano'!O53","v":0},0]
[{"$f":"'1 - Preenchimento do plano'!F54","v":0},1,{"$f":"'1 - Preenchimento do plano'!C54","v":"TECS - Fauna Edáfica"},null,null,{"$f":"'1 - Preenchimento do plano'!B54","v":"TESFAE"},{"$f":"'1 - Preenchimento do plano'!D54","v":30},null,{"$f":"'1 - Preenchimento do plano'!O54","v":0},0]
[{"$f":"'1 - Preenchimento do plano'!F55","v":0},1,{"$f":"'1 - Preenchimento do plano'!C55","v":"TECS - Física do Solo"},null,null,{"$f":"'1 - Preenchimento do plano'!B55","v":"TESFIS"},{"$f":"'1 - Preenchimento do plano'!D55","v":30},null,{"$f":"'1 - Preenchimento do plano'!O55","v":0},0]
[{"$f":"'1 - Preenchimento do plano'!F56","v":0},1,{"$f":"'1 - Preenchimento do plano'!C56","v":"TECS - Física /Compactação"},null,null,{"$f":"'1 - Preenchimento do plano'!B56","v":"TESFIC"},{"$f":"'1 - Preenchimento do plano'!D56","v":30},null,{"$f":"'1 - Preenchimento do plano'!O56","v":0},0]
[{"$f":"'1 - Preenchimento do plano'!F57","v":0},1,{"$f":"'1 - Preenchimento do plano'!C57","v":"TECS - Geoquímica de Metais Pesados"},null,null,{"$f":"'1 - Preenchimento do plano'!B57","v":"TESGMP"},{"$f":"'1 - Preenchimento do plano'!D57","v":30},null,{"$f":"'1 - Preenchimento do plano'!O57","v":0},0]
[{"$f":"'1 - Preenchimento do plano'!F58","v":0},1,{"$f":"'1 - Preenchimento do plano'!C58","v":"TECS - Geoquímica de Metais Pesados e Metalóides"},null,null,{"$f":"'1 - Preenchimento do plano'!B58","v":"TESGMM"},{"$f":"'1 - Preenchimento do plano'!D58","v":30},null,{"$f":"'1 - Preenchimento do plano'!O58","v":0},0]
[{"$f":"'1 - Preenchimento do plano'!F59","v":0},1,{"$f":"'1 - Preenchimento do plano'!C59","v":"TECS -Hidrologia"},null,null,{"$f":"'1 - Preenchimento do plano'!B59","v":"TESHDR"},{"$f":"'1 - Preenchimento do plano'!D59","v":30},null,{"$f":"'1 - Preenchimento do plano'!O59","v":0},0]
[{"$f":"'1 - Preenchimento do plano'!F60","v":0},1,{"$f":"'1 - Preenchimento do plano'!C60","v":"TECS - Levantamento e Classificação do Solo"},null,null,{"$f":"'1 - Preenchimento do plano'!B60","v":"TESLCS"},{"$f":"'1 - Preenchimento do plano'!D60","v":30},null,{"$f":"'1 - Preenchimento do plano'!O60","v":0},0]
[{"$f":"'1 - Preenchimento do plano'!F61","v":0},1,{"$f":"'1 - Preenchimento do plano'!C61","v":"TECS - Métodos Analíticos de Biologia do Solo"},null,null,{"$f":"'1 - Preenchimento do plano'!B61","v":"TESMAB"},{"$f":"'1 - Preenchimento do plano'!D61","v":30},null,{"$f":"'1 - Preenchimento do plano'!O61","v":0},0]
[{"$f":"'1 - Preenchimento do plano'!F62","v":0},1,{"$f":"'1 - Preenchimento do plano'!C62","v":"TECS - Métodos Analíticos em Microbiologia do Solo"},null,null,{"$f":"'1 - Preenchimento do plano'!B62","v":"TESMAM"},{"$f":"'1 - Preenchimento do plano'!D62","v":30},null,{"$f":"'1 - Preenchimento do plano'!O62","v":0},0]
[{"$f":"'1 - Preenchimento do plano'!F63","v":0},1,{"$f":"'1 - Preenchimento do plano'!C63","v":"TECS - Mineralogia das Argilas"},null,null,{"$f":"'1 - Preenchimento do plano'!B63","v":"TESMIA"},{"$f":"'1 - Preenchimento do plano'!D63","v":30},null,{"$f":"'1 - Preenchimento do plano'!O63","v":0},0]
[{"$f":"'1 - Preenchimento do plano'!F64","v":0},1,{"$f":"'1 - Preenchimento do plano'!C64","v":"TECS - Mineralogia do Solo"},null,null,{"$f":"'1 - Preenchimento do plano'!B64","v":"TESMIS"},{"$f":"'1 - Preenchimento do plano'!D64","v":30},null,{"$f":"'1 - Preenchimento do plano'!O64","v":0},0]
[{"$f":"'1 - Preenchimento do plano'!F65","v":0},1,{"$f":"'1 - Preenchimento do plano'!C65","v":"TECS - Nivelamento em Química"},null,null,{"$f":"'1 - Preenchimento do plano'!B65","v":"TESNIQ"},{"$f":"'1 - Preenchimento do plano'!D65","v":30},null,{"$f":"'1 - Preenchimento do plano'!O65","v":0},0]
[{"$f":"'1 - Preenchimento do plano'!F66","v":0},1,{"$f":"'1 - Preenchimento do plano'!C66","v":"TECS - Nutrição Mineral de Frutíferas"},null,null,{"$f":"'1 - Preenchimento do plano'!B66","v":"TESNMF"},{"$f":"'1 - Preenchimento do plano'!D66","v":30},null,{"$f":"'1 - Preenchimento do plano'!O66","v":0},0]
[{"$f":"'1 - Preenchimento do plano'!F67","v":0},1,{"$f":"'1 - Preenchimento do plano'!C67","v":"TECS - Pesquisas em Erosão Hídrica"},null,null,{"$f":"'1 - Preenchimento do plano'!B67","v":"TESPEH"},{"$f":"'1 - Preenchimento do plano'!D67","v":30},null,{"$f":"'1 - Preenchimento do plano'!O67","v":0},0]
[{"$f":"'1 - Preenchimento do plano'!F68","v":0},1,{"$f":"'1 - Preenchimento do plano'!C68","v":"TECS - Técnicas de Pesquisa em Erosão"},null,null,{"$f":"'1 - Preenchimento do plano'!B68","v":"TESTPE"},{"$f":"'1 - Preenchimento do plano'!D68","v":30},null,{"$f":"'1 - Preenchimento do plano'!O68","v":0},0]
[{"$f":"'1 - Preenchimento do plano'!F69","v":0},1,{"$f":"'1 - Preenchimento do plano'!C69","v":"TECS - Técnicas de Redação e de Apresentação de Trabalhos Científicos"},null,null,{"$f":"'1 - Preenchimento do plano'!B69","v":"TESTRT"},{"$f":"'1 - Preenchimento do plano'!D69","v":30},null,{"$f":"'1 - Preenchimento do plano'!O69","v":0},0]
[{"$f":"'1 - Preenchimento do plano'!F70","v":0},1,{"$f":"'1 - Preenchimento do plano'!C70","v":"TECS - Uso e Conservação do Solo"},null,null,{"$f":"'1 - Preenchimento do plano'!B70","v":"TESUCS"},{"$f":"'1 - Preenchimento do plano'!D70","v":30},null,{"$f":"'1 - Preenchimento do plano'!O70","v":0},{"$f":"A72*B72","v":0}]
[{"$f":"'1 - Preenchimento do plano'!F71","v":0},1,{"$f":"'1 - Preenchimento do plano'!C71","v":"TECS (Análise de Dados em Ecologia - Modelos Lineares General.)"},null,null,{"$f":"'1 - Preenchimento do plano'!B71","v":"TCSADE"},{"$f":"'1 - Preenchimento do plano'!D71","v":30},null,{"$f":"'1 - Preenchimento do plano'!O71","v":0},0]
[{"$f":"'1 - Preenchimento do plano'!F72","v":0},1,{"$f":"'1 - Preenchimento do plano'!C72","v":"TECS - Aplicada à Produção Florestal"},null,null,{"$f":"'1 - Preenchimento do plano'!B72","v":"TECSAP"},{"$f":"'1 - Preenchimento do plano'!D72","v":30},null,{"$f":"'1 - Preenchimento do plano'!O72","v":0},0]
[{"$f":"'1 - Preenchimento do plano'!F73","v":0},1,{"$f":"'1 - Preenchimento do plano'!C73","v":"TECS -  Avaliação de Risco Ecológico de Locais Contaminados"},null,null,{"$f":"'1 - Preenchimento do plano'!B73","v":"TESARC"},{"$f":"'1 - Preenchimento do plano'!D73","v":30},null,{"$f":"'1 - Preenchimento do plano'!O73","v":0},{"$f":"A75*B75","v":0}]
[{"$f":"'1 - Preenchimento do plano'!F74","v":0},1,{"$f":"'1 - Preenchimento do plano'!C74","v":"TECS - Ecotoxicologia e Análise de Risco Ecológico"},null,null,{"$f":"'1 - Preenchimento do plano'!B74","v":"TESEAR"},{"$f":"'1 - Preenchimento do plano'!D74","v":30},null,{"$f":"'1 - Preenchimento do plano'!O74","v":0},0]
[{"$f":"'1 - Preenchimento do plano'!F75","v":0},1,{"$f":"'1 - Preenchimento do plano'!C75","v":"TECS - A Utilização de Ensaios em Mesocosmos como Ferram..."},null,null,{"$f":"'1 - Preenchimento do plano'!B75","v":"TCSUEM"},{"$f":"'1 - Preenchimento do plano'!D75","v":30},null,{"$f":"'1 - Preenchimento do plano'!O75","v":0},0]
[{"$f":"'1 - Preenchimento do plano'!F76","v":0},1,{"$f":"'1 - Preenchimento do plano'!C76","v":"TECS - Métodos de Análises Físicas"},null,null,{"$f":"'1 - Preenchimento do plano'!B76","v":"TESMAF"},{"$f":"'1 - Preenchimento do plano'!D76","v":30},null,{"$f":"'1 - Preenchimento do plano'!O76","v":0},0]
[{"$f":"'1 - Preenchimento do plano'!F80","v":0},1,{"$f":"'1 - Preenchimento do plano'!C80","v":"Estatística - Nivelamento"},null,null,{"$f":"'1 - Preenchimento do plano'!B80","v":"ESTATI"},{"$f":"'1 - Preenchimento do plano'!D80","v":30},null,{"$f":"'1 - Preenchimento do plano'!O80","v":0},0]
[{"$f":"'1 - Preenchimento do plano'!F81","v":0},1,{"$f":"'1 - Preenchimento do plano'!C81","v":"Redação e Apresentação de Trabalhos Científicos"},null,null,{"$f":"'1 - Preenchimento do plano'!B81","v":"REDATC"},{"$f":"'1 - Preenchimento do plano'!D81","v":30},null,{"$f":"'1 - Preenchimento do plano'!O81","v":0},0]
[{"$f":"'1 - Preenchimento do plano'!F82","v":0},1,{"$f":"'1 - Preenchimento do plano'!C82","v":"Estatística Experimental e Análise Multivariada"},null,null,{"$f":"'1 - Preenchimento do plano'!B82","v":"ESTEAM"},{"$f":"'1 - Preenchimento do plano'!D82","v":60},null,{"$f":"'1 - Preenchimento do plano'!O82","v":0},0]
[{"$f":"'1 - Preenchimento do plano'!F83","v":0},1,{"$f":"'1 - Preenchimento do plano'!C83","v":"Fundamentos do Manejo de Plantas de Lavoura"},null,null,{"$f":"'1 - Preenchimento do plano'!B83","v":"FMAPLA"},{"$f":"'1 - Preenchimento do plano'!D83","v":60},null,{"$f":"'1 - Preenchimento do plano'!O83","v":0},0]
[{"$f":"'1 - Preenchimento do plano'!F84","v":0},1,{"$f":"'1 - Preenchimento do plano'!C84","v":"Metodologia do Ensino Superior"},null,null,{"$f":"'1 - Preenchimento do plano'!B84","v":"METENS"},{"$f":"'1 - Preenchimento do plano'!D84","v":60},null,{"$f":"'1 - Preenchimento do plano'!O84","v":0},0]
[{"$f":"'1 - Preenchimento do plano'!F85","v":0},1,{"$f":"'1 - Preenchimento do plano'!C85","v":"Modelos Biométricos Aplicados à Agronomia"},null,null,{"$f":"'1 - Preenchimento do plano'!B85","v":"MOBAPA"},{"$f":"'1 - Preenchimento do plano'!D85","v":60},null,{"$f":"'1 - Preenchimento do plano'!O85","v":0},0]
[{"$f":"'1 - Preenchimento do plano'!F89","v":0},1,{"$f":"'1 - Preenchimento do plano'!C89","v":"Elaboração de dissertação"},null,null,{"$f":"'1 - Preenchimento do plano'!B89","v":"DISSER"},{"$f":"'1 - Preenchimento do plano'!D89","v":0},null,{"$f":"'1 - Preenchimento do plano'!O89","v":0},0]
[{"$f":"'1 - Preenchimento do plano'!#REF!","v":{"$error":"#REF!"}},2,{"$f":"C24","v":{"$error":"#REF!"}},null,null,{"$f":"F24","v":{"$error":"#REF!"}},{"$error":"#REF!"},null,{"$f":"I24","v":{"$error":"#REF!"}},{"$error":"#REF!"}]
[{"$f":"'1 - Preenchimento do plano'!#REF!","v":{"$error":"#REF!"}},2,{"$error":"#REF!"},null,null,{"$error":"#REF!"},{"$error":"#REF!"},null,{"$error":"#REF!"},{"$error":"#REF!"}]
[{"$f":"'1 - Preenchimento do plano'!G19","v":0},2,"Gênese, Morfologia e Classificação de Solos",null,null,"GMS010",60,null,0,0]
[{"$f":"'1 - Preenchimento do plano'!G20","v":0},2,"Metodologia Científica e da Pesquisa",null,null,"MCP050",30,null,0,0]
[{"$f":"'1 - Preenchimento do plano'!G21","v":0},2,"Seminarios - Presença",null,null,"SEMPMS",30,null,0,0]
[{"$f":"'1 - Preenchimento do plano'!G22","v":0},2,"Seminários - Apresentador",null,null,"SEM200",30,null,0,0]
[{"$f":"'1 - Preenchimento do plano'!G23","v":0},2,"Exame de proficiência em Língua Inglesa",null,null,"INGLES",0,null,0,0]
[{"$f":"'1 - Preenchimento do plano'!G24","v":0},2,"Estágio em docência",null,null,"ESTDOC",30,null,0,0]
[{"$f":"'1 - Preenchimento do plano'!G28","v":0},2,"Água no Sistema Solo-Planta-Atmosfera",null,null,"ASISPA",60,null,0,0]
[{"$f":"'1 - Preenchimento do plano'!G29","v":0},2,"Biodegradação de Resíduos Agrícolas e Industriais",null,null,"BRA140",60,null,0,0]
[{"$f":"'1 - Preenchimento do plano'!G30","v":0},2,"Biologia do Solo",null,null,"BIO060",60,null,0,0]
[{"$f":"'1 - Preenchimento do plano'!G31","v":0},2,"Ecotoxicologia de Poluentes Inorgânicos ",null,null,"ETOPOI",30,null,0,0]
[{"$f":"'1 - Preenchimento do plano'!G32","v":0},2,"Fertilidade do Solo",null,null,"FER040",60,null,0,0]
[{"$f":"'1 - Preenchimento do plano'!G34","v":0},2,"Fisiologia Vegetal",null,null,"FIVEMS",60,null,0,0]
[{"$f":"'1 - Preenchimento do plano'!G35","v":0},2,"Hidrologia",null,null,"HIDROL",60,null,0,0]
[{"$f":"'1 - Preenchimento do plano'!G36","v":0},2,"Levantamento de Solos",null,null,"LSO120",60,null,0,0]
[{"$f":"'1 - Preenchimento do plano'!G37","v":0},2,"Manejo do Solo",null,null,"MSO010",60,null,0,0]
[{"$f":"'1 - Preenchimento do plano'!G38","v":0},2,"Métodos de Análise em Microbiologia e Bioquímica do Solo",null,null,"MAMBIS",60,null,0,0]
[{"$f":"'1 - Preenchimento do plano'!G39","v":0},2,"Matéria Orgânica do Solo",null,null,"MATORS",60,null,0,{"$f":"A104*B104","v":0}]
[{"$f":"'1 - Preenchimento do plano'!G40","v":0},2,"Mineralogia do Solo",null,null,"MINSOL",30,null,0,0]
[{"$f":"'1 - Preenchimento do plano'!G42","v":0},2,"Recuperação de Áreas Degradadas",null,null,"RECADE",60,null,0,0]
[{"$f":"'1 - Preenchimento do plano'!G43","v":0},2,"Relação Planta Microrganismos",null,null,{"$f":"F45","v":"REPLAM"},60,null,0,{"$f":"A107*B107","v":0}]
[{"$f":"'1 - Preenchimento do plano'!G44","v":0},2,"Relação Solo-Planta",null,null,{"$f":"F46","v":"RESOLP"},30,null,0,0]
[{"$f":"'1 - Preenchimento do plano'!G45","v":0},2,"Uso e Conservação do Solo",null,null,{"$f":"F47","v":"UCS070"},60,null,0,0]
[{"$f":"'1 - Preenchimento do plano'!G46","v":0},2,"Técnicas de Análise Química de Solo e Tecido Vegetal",null,null,{"$f":"F48","v":"TST170"},60,null,0,0]
[{"$f":"'1 - Preenchimento do plano'!G47","v":0},2,"Tópicos Especiais em Ciência do Solo - TECS",null,null,{"$f":"F49","v":"TES160"},30,null,0,0]
[{"$f":"'1 - Preenchimento do plano'!G48","v":0},2,"TECS - Análise Estatística de Dados Utilizando o Programa SAS",null,null,{"$f":"F50","v":"TESAED"},30,null,0,{"$f":"A112*B112","v":0}]
[{"$f":"'1 - Preenchimento do plano'!G49","v":0},2,"TECS - Biologia do Solo",null,null,{"$f":"F51","v":"TESBSO"},30,null,0,0]
[{"$f":"'1 - Preenchimento do plano'!G50","v":0},2,"TECS - Dinâmica de fósforo no solo e ambiente",null,null,"TESDFS",30,null,0,{"$f":"A114*B114","v":0}]
[{"$f":"'1 - Preenchimento do plano'!G51","v":0},2,"TECS - Estatística Aplicada ao Estudo de Caso",null,null,{"$f":"F53","v":"TESEAC"},30,null,0,0]
[{"$f":"'1 - Preenchimento do plano'!G52","v":0},2,"TECS - Etnopedologia",null,null,{"$f":"F54","v":"TESETN"},30,null,0,0]
[{"$f":"'1 - Preenchimento do plano'!G53","v":0},2,"TECS - Extensão Universitária em C. A.agrárias - Projeto Rondon",null,null,{"$f":"F55","v":"TECSPR"},30,null,0,0]
[{"$f":"'1 - Preenchimento do plano'!G54","v":0},2,{"$f":"C56","v":"TECS - Fauna Edáfica"},null,null,{"$f":"F56","v":"TESFAE"},30,null,{"$f":"I56","v":0},0]
[{"$f":"'1 - Preenchimento do plano'!G55","v":0},2,"TECS - Física do Solo",null,null,{"$f":"F57","v":"TESFIS"},30,null,0,0]
[{"$f":"'1 - Preenchimento do plano'!G56","v":0},2,"TECS - Física /Compactação",null,null,{"$f":"F58","v":"TESFIC"},30,null,0,0]
[{"$f":"'1 - Preenchimento do plano'!G57","v":0},2,"TECS - Geoquímica de Metais Pesados",null,null,{"$f":"F59","v":"TESGMP"},30,null,0,0]
[{"$f":"'1 - Preenchimento do plano'!G58","v":0},2,"TECS - Geoquímica de Metais Pesados e Metalóides",null,null,{"$f":"F60","v":"TESGMM"},30,null,0,0]
[{"$f":"'1 - Preenchimento do plano'!G59","v":0},2,"TECS -Hidrologia",null,null,{"$f":"F61","v":"TESHDR"},30,null,0,0]
[{"$f":"'1 - Preenchimento do plano'!G60","v":0},2,"TECS - Levantamento e Classificação do Solo",null,null,{"$f":"F62","v":"TESLCS"},30,null,0,0]
[{"$f":"'1 - Preenchimento do plano'!G61","v":0},2,"TECS - Métodos Analíticos de Biologia do Solo",null,null,{"$f":"F63","v":"TESMAB"},30,null,0,0]
[{"$f":"'1 - Preenchimento do plano'!G62","v":0},2,"TECS - Métodos Analíticos em Microbiologia do Solo",null,null,{"$f":"F64","v":"TESMAM"},30,null,0,0]
[{"$f":"'1 - Preenchimento do plano'!G63","v":0},2,"TECS - Mineralogia das Argilas",null,null,{"$f":"F65","v":"TESMIA"},30,null,0,0]
[{"$f":"'1 - Preenchimento do plano'!G64","v":0},2,"TECS - Mineralogia do Solo",null,null,{"$f":"F66","v":"TESMIS"},30,null,0,0]
[{"$f":"'1 - Preenchimento do plano'!G65","v":0},2,"TECS - Nivelamento em Química",null,null,{"$f":"F67","v":"TESNIQ"},30,null,0,0]
[{"$f":"'1 - Preenchimento do plano'!G66","v":0},2,"TECS - Nutrição Mineral de Frutíferas",null,null,{"$f":"F68","v":"TESNMF"},30,null,0,0]
[{"$f":"'1 - Preenchimento do plano'!G67","v":0},2,"TECS - Pesquisas em Erosão Hídrica",null,null,{"$f":"F69","v":"TESPEH"},30,null,0,0]
[{"$f":"'1 - Preenchimento do plano'!G68","v":0},2,"TECS - Técnicas de Pesquisa em Erosão",null,null,{"$f":"F70","v":"TESTPE"},30,null,0,0]
[{"$f":"'1 - Preenchimento do plano'!G69","v":0},2,"TECS - Técnicas de Redação e de Apresentação de Trabalhos Científicos",null,null,{"$f":"F71","v":"TESTRT"},30,null,0,0]
[{"$f":"'1 - Preenchimento do plano'!G70","v":0},2,"TECS - Uso e Conservação do Solo",null,null,{"$f":"F72","v":"TESUCS"},30,null,0,0]
[{"$f":"'1 - Preenchimento do plano'!G71","v":0},2,"TECS (Análise de Dados em Ecologia - Modelos Lineares General.)",null,null,{"$f":"F73","v":"TCSADE"},30,null,0,0]
[{"$f":"'1 - Preenchimento do plano'!G72","v":0},2,"TECS - Aplicada à Produção Florestal",null,null,{"$f":"F74","v":"TECSAP"},30,null,0,0]
[{"$f":"'1 - Preenchimento do plano'!G73","v":0},2,"TECS -  Avaliação de Risco Ecológico de Locais Contaminados",null,null,{"$f":"F75","v":"TESARC"},30,null,0,{"$f":"A137*B137","v":0}]
[{"$f":"'1 - Preenchimento do plano'!G74","v":0},2,"TECS - Ecotoxicologia e Análise de Risco Ecológico",null,null,{"$f":"F76","v":"TESEAR"},30,null,0,0]
[{"$f":"'1 - Preenchimento do plano'!G75","v":0},2,"TECS - A Utilização de Ensaios em Mesocosmos como Ferram...",null,null,{"$f":"F77","v":"TCSUEM"},30,null,0,0]
[{"$f":"'1 - Preenchimento do plano'!G76","v":0},2,"TECS - Métodos de Análises Físicas",null,null,{"$f":"F78","v":"TESMAF"},30,null,0,0]
[{"$f":"'1 - Preenchimento do plano'!G80","v":0},2,"Estatística - Nivelamento",null,null,{"$f":"F79","v":"ESTATI"},30,null,0,0]
[{"$f":"'1 - Preenchimento do plano'!G81","v":0},2,"Redação e Apresentação de Trabalhos Científicos",null,null,"REDATC",30,null,0,0]
[{"$f":"'1 - Preenchimento do plano'!G82","v":0},2,"Estatística Experimental e Análise Multivariada",null,null,"ESTEAM",60,null,0,0]
[{"$f":"'1 - Preenchimento do plano'!G83","v":0},2,"Fundamentos do Manejo de Plantas de Lavoura",null,null,"FMAPLA",60,null,0,0]
[{"$f":"'1 - Preenchimento do plano'!G84","v":0},2,"Metodologia do Ensino Superior",null,null,"METENS",60,null,0,0]
[{"$f":"'1 - Preenchimento do plano'!G85","v":0},2,"Modelos Biométricos Aplicados à Agronomia",null,null,"MOBAPA",60,null,0,0]
[{"$f":"'1 - Preenchimento do plano'!G89","v":0},2,"Elaboração de dissertação",null,null,"DISSER",0,null,0,0]
[{"$f":"'1 - Preenchimento do plano'!#REF!","v":{"$error":"#REF!"}},3,{"$error":"#REF!"},null,null,{"$f":"F24","v":{"$error":"#REF!"}},{"$f":"G86","v":{"$error":"#REF!"}},null,{"$error":"#REF!"},{"$error":"#REF!"}]
[{"$f":"'1 - Preenchimento do plano'!#REF!","v":{"$error":"#REF!"}},3,{"$error":"#REF!"},null,null,{"$error":"#REF!"},{"$error":"#REF!"},null,{"$error":"#REF!"},{"$error":"#REF!"}]
[{"$f":"'1 - Preenchimento do plano'!H19","v":0},3,{"$f":"C88","v":"Gênese, Morfologia e Classificação de Solos"},null,null,"GMS010",60,null,{"$f":"I88","v":0},0]
[{"$f":"'1 - Preenchimento do plano'!H20","v":0},3,"Metodologia Científica e da Pesquisa",null,null,"MCP050",30,null,0,0]
[{"$f":"'1 - Preenchimento do plano'!H21","v":0},3,"Seminarios - Presença",null,null,"SEMPMS",30,null,0,0]
[{"$f":"'1 - Preenchimento do plano'!H22","v":0},3,"Seminários - Apresentador",null,null,"SEM200",30,null,0,{"$f":"A153*B153","v":0}]
[{"$f":"'1 - Preenchimento do plano'!H23","v":0},3,"Exame de proficiência em Língua Inglesa",null,null,"INGLES",0,null,0,0]
[{"$f":"'1 - Preenchimento do plano'!H24","v":0},3,"Estágio em docência",null,null,"ESTDOC",30,null,0,0]
[{"$f":"'1 - Preenchimento do plano'!H28","v":0},3,"Água no Sistema Solo-Planta-Atmosfera",null,null,"ASISPA",60,null,0,0]
[{"$f":"'1 - Preenchimento do plano'!H29","v":0},3,"Biodegradação de Resíduos Agrícolas e Industriais",null,null,"BRA140",60,null,0,0]
[{"$f":"'1 - Preenchimento do plano'!H30","v":0},3,"Biologia do Solo",null,null,"BIO060",60,null,0,0]
[{"$f":"'1 - Preenchimento do plano'!H31","v":0},3,"Ecotoxicologia de Poluentes Inorgânicos ",null,null,"ETOPOI",30,null,0,0]
[{"$f":"'1 - Preenchimento do plano'!H32","v":0},3,"Fertilidade do Solo",null,null,"FER040",60,null,0,0]
[{"$f":"'1 - Preenchimento do plano'!H34","v":0},3,"Fisiologia Vegetal",null,null,"FIVEMS",60,null,0,0]
[{"$f":"'1 - Preenchimento do plano'!H35","v":0},3,"Hidrologia",null,null,"HIDROL",60,null,0,0]
[{"$f":"'1 - Preenchimento do plano'!H36","v":0},3,"Levantamento de Solos",null,null,"LSO120",60,null,0,0]
[{"$f":"'1 - Preenchimento do plano'!H37","v":0},3,"Manejo do Solo",null,null,"MSO010",60,null,0,0]
[{"$f":"'1 - Preenchimento do plano'!H38","v":0},3,"Métodos de Análise em Microbiologia e Bioquímica do Solo",null,null,"MAMBIS",60,null,0,0]
[{"$f":"'1 - Preenchimento do plano'!H39","v":0},3,"Matéria Orgânica do Solo",null,null,"MATORS",60,null,0,{"$f":"A166*B166","v":0}]
[{"$f":"'1 - Preenchimento do plano'!H40","v":0},3,"Mineralogia do Solo",null,null,"MINSOL",30,null,0,0]
[{"$f":"'1 - Preenchimento do plano'!H42","v":0},3,"Recuperação de Áreas Degradadas",null,null,"RECADE",60,null,0,0]
[{"$f":"'1 - Preenchimento do plano'!H43","v":0},3,"Relação Planta Microrganismos",null,null,"REPLAM",60,null,0,{"$f":"A169*B169","v":0}]
[{"$f":"'1 - Preenchimento do plano'!H44","v":0},3,"Relação Solo-Planta",null,null,"RESOLP",30,null,0,0]
[{"$f":"'1 - Preenchimento do plano'!H45","v":0},3,"Uso e Conservação do Solo",null,null,"UCS070",60,null,0,0]
[{"$f":"'1 - Preenchimento do plano'!H46","v":0},3,"Técnicas de Análise Química de Solo e Tecido Vegetal",null,null,"TST170",60,null,0,0]
[{"$f":"'1 - Preenchimento do plano'!H47","v":0},3,"Tópicos Especiais em Ciência do Solo - TECS",null,null,"TES160",30,null,0,0]
[{"$f":"'1 - Preenchimento do plano'!H48","v":0},3,"TECS - Análise Estatística de Dados Utilizando o Programa SAS",null,null,"TESAED",30,null,0,{"$f":"A174*B174","v":0}]
[{"$f":"'1 - Preenchimento do plano'!H49","v":0},3,"TECS - Biologia do Solo",null,null,"TESBSO",30,null,0,0]
[{"$f":"'1 - Preenchimento do plano'!H50","v":0},3,"TECS - Dinâmica de fósforo no solo e ambiente",null,null,"TESDFS",30,null,0,{"$f":"A176*B176","v":0}]
[{"$f":"'1 - Preenchimento do plano'!H51","v":0},3,"TECS - Estatística Aplicada ao Estudo de Caso",null,null,"TESEAC",30,null,0,0]
[{"$f":"'1 - Preenchimento do plano'!H52","v":0},3,"TECS - Etnopedologia",null,null,"TESETN",30,null,0,0]
[{"$f":"'1 - Preenchimento do plano'!H53","v":0},3,"TECS - Extensão Universitária em C. A.agrárias - Projeto Rondon",null,null,"TECSPR",30,null,0,0]
[{"$f":"'1 - Preenchimento do plano'!H54","v":0},3,"TECS - Fauna Edáfica",null,null,{"$f":"F56","v":"TESFAE"},{"$f":"G118","v":30},null,0,0]
[{"$f":"'1 - Preenchimento do plano'!H55","v":0},3,"TECS - Física do Solo",null,null,"TESFIS",30,null,0,0]
[{"$f":"'1 - Preenchimento do plano'!H56","v":0},3,{"$f":"C120","v":"TECS - Física /Compactação"},null,null,"TESFIC",30,null,{"$f":"I120","v":0},0]
[{"$f":"'1 - Preenchimento do plano'!H57","v":0},3,"TECS - Geoquímica de Metais Pesados",null,null,"TESGMP",30,null,0,0]
[{"$f":"'1 - Preenchimento do plano'!H58","v":0},3,"TECS - Geoquímica de Metais Pesados e Metalóides",null,null,"TESGMM",30,null,0,0]
[{"$f":"'1 - Preenchimento do plano'!H59","v":0},3,"TECS -Hidrologia",null,null,"TESHDR",30,null,0,0]
[{"$f":"'1 - Preenchimento do plano'!H60","v":0},3,"TECS - Levantamento e Classificação do Solo",null,null,"TESLCS",30,null,0,0]
[{"$f":"'1 - Preenchimento do plano'!H61","v":0},3,"TECS - Métodos Analíticos de Biologia do Solo",null,null,"TESMAB",30,null,0,0]
[{"$f":"'1 - Preenchimento do plano'!H62","v":0},3,"TECS - Métodos Analíticos em Microbiologia do Solo",null,null,"TESMAM",30,null,0,0]
[{"$f":"'1 - Preenchimento do plano'!H63","v":0},3,"TECS - Mineralogia das Argilas",null,null,"TESMIA",30,null,0,0]
[{"$f":"'1 - Preenchimento do plano'!H64","v":0},3,"TECS - Mineralogia do Solo",null,null,"TESMIS",30,null,0,0]
[{"$f":"'1 - Preenchimento do plano'!H65","v":0},3,"TECS - Nivelamento em Química",null,null,"TESNIQ",30,null,0,0]
[{"$f":"'1 - Preenchimento do plano'!H66","v":0},3,"TECS - Nutrição Mineral de Frutíferas",null,null,"TESNMF",30,null,0,0]
[{"$f":"'1 - Preenchimento do plano'!H67","v":0},3,"TECS - Pesquisas em Erosão Hídrica",null,null,"TESPEH",30,null,0,0]
[{"$f":"'1 - Preenchimento do plano'!H68","v":0},3,"TECS - Técnicas de Pesquisa em Erosão",null,null,"TESTPE",30,null,0,0]
[{"$f":"'1 - Preenchimento do plano'!H69","v":0},3,"TECS - Técnicas de Redação e de Apresentação de Trabalhos Científicos",null,null,"TESTRT",30,null,0,0]
[{"$f":"'1 - Preenchimento do plano'!H70","v":0},3,"TECS - Uso e Conservação do Solo",null,null,"TESUCS",30,null,0,0]
[{"$f":"'1 - Preenchimento do plano'!H71","v":0},3,"TECS (Análise de Dados em Ecologia - Modelos Lineares General.)",null,null,"TCSADE",30,null,0,0]
[{"$f":"'1 - Preenchimento do plano'!H72","v":0},3,"TECS - Aplicada à Produção Florestal",null,null,"TECSAP",30,null,0,0]
[{"$f":"'1 - Preenchimento do plano'!H73","v":0},3,"TECS -  Avaliação de Risco Ecológico de Locais Contaminados",null,null,"TESARC",30,null,0,0]
[{"$f":"'1 - Preenchimento do plano'!H74","v":0},3,"TECS - Ecotoxicologia e Análise de Risco Ecológico",null,null,"TESEAR",30,null,0,0]
[{"$f":"'1 - Preenchimento do plano'!H75","v":0},3,"TECS - A Utilização de Ensaios em Mesocosmos como Ferram...",null,null,"TCSUEM",30,null,0,0]
[{"$f":"'1 - Preenchimento do plano'!H76","v":0},3,"TECS - Métodos de Análises Físicas",null,null,"TESMAF",30,null,0,0]
[{"$f":"'1 - Preenchimento do plano'!H80","v":0},3,"Estatística - Nivelamento",null,null,"ESTATI",30,null,0,0]
[{"$f":"'1 - Preenchimento do plano'!H81","v":0},3,"Redação e Apresentação de Trabalhos Científicos",null,null,"REDATC",30,null,0,0]
[{"$f":"'1 - Preenchimento do plano'!H82","v":0},3,"Estatística Experimental e Análise Multivariada",null,null,"ESTEAM",60,null,0,0]
[{"$f":"'1 - Preenchimento do plano'!H83","v":0},3,"Fundamentos do Manejo de Plantas de Lavoura",null,null,"FMAPLA",60,null,0,0]
[{"$f":"'1 - Preenchimento do plano'!H84","v":0},3,"Metodologia do Ensino Superior",null,null,"METENS",60,null,0,0]
[{"$f":"'1 - Preenchimento do plano'!H85","v":0},3,"Modelos Biométricos Aplicados à Agronomia",null,null,"MOBAPA",60,null,0,0]
[{"$f":"'1 - Preenchimento do plano'!H89","v":0},3,"Elaboração de dissertação",null,null,"DISSER",0,null,0,0]
[{"$f":"'1 - Preenchimento do plano'!#REF!","v":{"$error":"#REF!"}},4,{"$error":"#REF!"},null,null,{"$f":"F24","v":{"$error":"#REF!"}},{"$error":"#REF!"},null,{"$error":"#REF!"},{"$error":"#REF!"}]
[{"$f":"'1 - Preenchimento do plano'!#REF!","v":{"$error":"#REF!"}},4,{"$error":"#REF!"},null,null,{"$error":"#REF!"},{"$error":"#REF!"},null,{"$error":"#REF!"},{"$error":"#REF!"}]
[{"$f":"'1 - Preenchimento do plano'!I19","v":0},4,"Gênese, Morfologia e Classificação de Solos",null,null,"GMS010",{"$f":"G150","v":60},null,0,0]
[{"$f":"'1 - Preenchimento do plano'!I20","v":0},4,"Metodologia Científica e da Pesquisa",null,null,"MCP050",30,null,0,0]
[{"$f":"'1 - Preenchimento do plano'!I21","v":0},4,{"$f":"C152","v":"Seminarios - Presença"},null,null,"SEMPMS",30,null,{"$f":"I152","v":0},0]
[{"$f":"'1 - Preenchimento do plano'!I22","v":0},4,"Seminários - Apresentador",null,null,"SEM200",30,null,0,0]
[{"$f":"'1 - Preenchimento do plano'!I23","v":0},4,"Exame de proficiência em Língua Inglesa",null,null,"INGLES",0,null,0,0]
[{"$f":"'1 - Preenchimento do plano'!I24","v":0},4,"Estágio em docência",null,null,"ESTDOC",30,null,0,0]
[{"$f":"'1 - Preenchimento do plano'!I28","v":0},4,"Água no Sistema Solo-Planta-Atmosfera",null,null,"ASISPA",60,null,0,0]
[{"$f":"'1 - Preenchimento do plano'!I29","v":0},4,"Biodegradação de Resíduos Agrícolas e Industriais",null,null,"BRA140",60,null,0,0]
[{"$f":"'1 - Preenchimento do plano'!I30","v":0},4,"Biologia do Solo",null,null,"BIO060",60,null,0,0]
[{"$f":"'1 - Preenchimento do plano'!I31","v":0},4,"Ecotoxicologia de Poluentes Inorgânicos ",null,null,"ETOPOI",30,null,0,0]
[{"$f":"'1 - Preenchimento do plano'!I32","v":0},4,"Fertilidade do Solo",null,null,"FER040",60,null,0,0]
[{"$f":"'1 - Preenchimento do plano'!I34","v":0},4,"Fisiologia Vegetal",null,null,"FIVEMS",60,null,0,0]
[{"$f":"'1 - Preenchimento do plano'!I35","v":0},4,"Hidrologia",null,null,"HIDROL",60,null,0,0]
[{"$f":"'1 - Preenchimento do plano'!I36","v":0},4,"Levantamento de Solos",null,null,"LSO120",60,null,0,0]
[{"$f":"'1 - Preenchimento do plano'!I37","v":0},4,"Manejo do Solo",null,null,"MSO010",60,null,0,0]
[{"$f":"'1 - Preenchimento do plano'!I38","v":0},4,"Métodos de Análise em Microbiologia e Bioquímica do Solo",null,null,"MAMBIS",60,null,0,0]
[{"$f":"'1 - Preenchimento do plano'!I39","v":0},4,"Matéria Orgânica do Solo",null,null,"MATORS",60,null,0,{"$f":"A228*B228","v":0}]
[{"$f":"'1 - Preenchimento do plano'!I40","v":0},4,"Mineralogia do Solo",null,null,"MINSOL",30,null,0,0]
[{"$f":"'1 - Preenchimento do plano'!I42","v":0},4,"Recuperação de Áreas Degradadas",null,null,"RECADE",60,null,0,0]
[{"$f":"'1 - Preenchimento do plano'!I43","v":0},4,"Relação Planta Microrganismos",null,null,"REPLAM",60,null,0,{"$f":"A231*B231","v":0}]
[{"$f":"'1 - Preenchimento do plano'!I44","v":0},4,"Relação Solo-Planta",null,null,"RESOLP",30,null,0,0]
[{"$f":"'1 - Preenchimento do plano'!I45","v":0},4,"Uso e Conservação do Solo",null,null,"UCS070",60,null,0,0]
[{"$f":"'1 - Preenchimento do plano'!I46","v":0},4,"Técnicas de Análise Química de Solo e Tecido Vegetal",null,null,"TST170",60,null,0,0]
[{"$f":"'1 - Preenchimento do plano'!I47","v":0},4,"Tópicos Especiais em Ciência do Solo - TECS",null,null,"TES160",30,null,0,0]
[{"$f":"'1 - Preenchimento do plano'!I48","v":0},4,"TECS - Análise Estatística de Dados Utilizando o Programa SAS",null,null,"TESAED",30,null,0,{"$f":"A236*B236","v":0}]
[{"$f":"'1 - Preenchimento do plano'!I49","v":0},4,"TECS - Biologia do Solo",null,null,"TESBSO",30,null,0,0]
[{"$f":"'1 - Preenchimento do plano'!I50","v":0},4,"TECS - Dinâmica de fósforo no solo e ambiente",null,null,"TESDFS",30,null,0,{"$f":"A238*B238","v":0}]
[{"$f":"'1 - Preenchimento do plano'!I51","v":0},4,"TECS - Estatística Aplicada ao Estudo de Caso",null,null,"TESEAC",30,null,0,0]
[{"$f":"'1 - Preenchimento do plano'!I52","v":0},4,"TECS - Etnopedologia",null,null,"TESETN",30,null,0,0]
[{"$f":"'1 - Preenchimento do plano'!I53","v":0},4,"TECS - Extensão Universitária em C. A.agrárias - Projeto Rondon",null,null,"TECSPR",30,null,0,0]
[{"$f":"'1 - Preenchimento do plano'!I54","v":0},4,"TECS - Fauna Edáfica",null,null,{"$f":"F56","v":"TESFAE"},30,null,0,0]
[{"$f":"'1 - Preenchimento do plano'!I55","v":0},4,"TECS - Física do Solo",null,null,"TESFIS",30,null,0,0]
[{"$f":"'1 - Preenchimento do plano'!I56","v":0},4,"TECS - Física /Compactação",null,null,"TESFIC",{"$f":"G182","v":30},null,0,0]
[{"$f":"'1 - Preenchimento do plano'!I57","v":0},4,"TECS - Geoquímica de Metais Pesados",null,null,"TESGMP",30,null,0,0]
[{"$f":"'1 - Preenchimento do plano'!I58","v":0},4,{"$f":"C184","v":"TECS - Geoquímica de Metais Pesados e Metalóides"},null,null,"TESGMM",30,null,{"$f":"I184","v":0},0]
[{"$f":"'1 - Preenchimento do plano'!I59","v":0},4,"TECS -Hidrologia",null,null,"TESHDR",30,null,0,0]
[{"$f":"'1 - Preenchimento do plano'!I60","v":0},4,"TECS - Levantamento e Classificação do Solo",null,null,"TESLCS",30,null,0,0]
[{"$f":"'1 - Preenchimento do plano'!I61","v":0},4,"TECS - Métodos Analíticos de Biologia do Solo",null,null,"TESMAB",30,null,0,0]
[{"$f":"'1 - Preenchimento do plano'!I62","v":0},4,"TECS - Métodos Analíticos em Microbiologia do Solo",null,null,"TESMAM",30,null,0,0]
[{"$f":"'1 - Preenchimento do plano'!I63","v":0},4,"TECS - Mineralogia das Argilas",null,null,"TESMIA",30,null,0,0]
[{"$f":"'1 - Preenchimento do plano'!I64","v":0},4,"TECS - Mineralogia do Solo",null,null,"TESMIS",30,null,0,0]
[{"$f":"'1 - Preenchimento do plano'!I65","v":0},4,"TECS - Nivelamento em Química",null,null,"TESNIQ",30,null,0,0]
[{"$f":"'1 - Preenchimento do plano'!I66","v":0},4,"TECS - Nutrição Mineral de Frutíferas",null,null,"TESNMF",30,null,0,0]
[{"$f":"'1 - Preenchimento do plano'!I67","v":0},4,"TECS - Pesquisas em Erosão Hídrica",null,null,"TESPEH",30,null,0,0]
[{"$f":"'1 - Preenchimento do plano'!I68","v":0},4,"TECS - Técnicas de Pesquisa em Erosão",null,null,"TESTPE",30,null,0,0]
[{"$f":"'1 - Preenchimento do plano'!I69","v":0},4,"TECS - Técnicas de Redação e de Apresentação de Trabalhos Científicos",null,null,"TESTRT",30,null,0,0]
[{"$f":"'1 - Preenchimento do plano'!I70","v":0},4,"TECS - Uso e Conservação do Solo",null,null,"TESUCS",30,null,0,0]
[{"$f":"'1 - Preenchimento do plano'!I71","v":0},4,"TECS (Análise de Dados em Ecologia - Modelos Lineares General.)",null,null,"TCSADE",30,null,0,0]
[{"$f":"'1 - Preenchimento do plano'!I72","v":0},4,"TECS - Aplicada à Produção Florestal",null,null,"TECSAP",30,null,0,0]
[{"$f":"'1 - Preenchimento do plano'!I73","v":0},4,"TECS -  Avaliação de Risco Ecológico de Locais Contaminados",null,null,"TESARC",30,null,0,{"$f":"A261*B261","v":0}]
[{"$f":"'1 - Preenchimento do plano'!I74","v":0},4,"TECS - Ecotoxicologia e Análise de Risco Ecológico",null,null,"TESEAR",30,null,0,0]
[{"$f":"'1 - Preenchimento do plano'!I75","v":0},4,"TECS - A Utilização de Ensaios em Mesocosmos como Ferram...",null,null,"TCSUEM",30,null,0,0]
[{"$f":"'1 - Preenchimento do plano'!I76","v":0},4,"TECS - Métodos de Análises Físicas",null,null,"TESMAF",30,null,0,0]
[{"$f":"'1 - Preenchimento do plano'!I80","v":0},4,{"$f":"C203","v":"Estatística - Nivelamento"},null,null,"ESTATI",{"$f":"G203","v":30},null,{"$f":"I203","v":0},0]
[{"$f":"'1 - Preenchimento do plano'!I81","v":0},4,"Redação e Apresentação de Trabalhos Científicos",null,null,"REDATC",{"$f":"G204","v":30},null,0,0]
[{"$f":"'1 - Preenchimento do plano'!I82","v":0},4,"Estatística Experimental e Análise Multivariada",null,null,"ESTEAM",60,null,0,0]
[{"$f":"'1 - Preenchimento do plano'!I83","v":0},4,"Fundamentos do Manejo de Plantas de Lavoura",null,null,"FMAPLA",60,null,0,0]
[{"$f":"'1 - Preenchimento do plano'!I84","v":0},4,"Metodologia do Ensino Superior",null,null,"METENS",60,null,0,0]
[{"$f":"'1 - Preenchimento do plano'!I85","v":0},4,"Modelos Biométricos Aplicados à Agronomia",null,null,"MOBAPA",60,null,0,0]
[{"$f":"'1 - Preenchimento do plano'!I89","v":0},4,"Elaboração de dissertação",null,null,"DISSER",0,null,0,0]
[null,"DISCIPLINAS COM SOLICITAÇÃO DE DISPENSA, APROVEITAMENTO OU VALIDAÇÃO",null,null,null,null,null,null,null,1]
[{"$f":"'1 - Preenchimento do plano'!#REF!","v":{"$error":"#REF!"}},"x",{"$f":"C24","v":{"$error":"#REF!"}},null,null,{"$f":"F24","v":{"$error":"#REF!"}},{"$error":"#REF!"},null,{"$f":"I24","v":{"$error":"#REF!"}},{"$f":"A273","v":{"$error":"#REF!"}}]
[{"$f":"'1 - Preenchimento do plano'!#REF!","v":{"$error":"#REF!"}},"x",{"$error":"#REF!"},null,null,{"$error":"#REF!"},{"$error":"#REF!"},null,{"$error":"#REF!"},{"$f":"A274","v":{"$error":"#REF!"}}]
[{"$f":"'1 - Preenchimento do plano'!J19","v":0},"x","Gênese, Morfologia e Classificação de Solos",null,null,"GMS010",60,null,0,0]
[{"$f":"'1 - Preenchimento do plano'!J20","v":0},"x","Metodologia Científica e da Pesquisa",null,null,"MCP050",30,null,0,0]
[0,"x","Seminarios - Presença",null,null,"SEMPMS",30,null,0,0]
[0,"x","Seminários - Apresentador",null,null,"SEM200",30,null,0,0]
[{"$f":"'1 - Preenchimento do plano'!K23","v":0},"x","Exame de proficiência em Língua Inglesa",null,null,"INGLES",0,null,0,0]
[{"$f":"'1 - Preenchimento do plano'!K24","v":0},"x","Estágio em docência",null,null,"ESTDOC",30,null,0,0]
[{"$f":"'1 - Preenchimento do plano'!J28","v":0},"x","Água no Sistema Solo-Planta-Atmosfera",null,null,"ASISPA",60,null,0,0]
[{"$f":"'1 - Preenchimento do plano'!J29","v":0},"x","Biodegradação de Resíduos Agrícolas e Industriais",null,null,"BRA140",60,null,0,0]
[{"$f":"'1 - Preenchimento do plano'!J30","v":0},"x","Biologia do Solo",null,null,"BIO060",60,null,0,0]
[{"$f":"'1 - Preenchimento do plano'!J31","v":0},"x","Ecotoxicologia de Poluentes Inorgânicos ",null,null,"ETOPOI",30,null,0,0]
[{"$f":"'1 - Preenchimento do plano'!J32","v":0},"x","Fertilidade do Solo",null,null,"FER040",60,null,0,0]
[{"$f":"'1 - Preenchimento do plano'!J34","v":0},"x","Fisiologia Vegetal",null,null,"FIVEMS",60,null,0,0]
[{"$f":"'1 - Preenchimento do plano'!J35","v":0},"x","Hidrologia",null,null,"HIDROL",60,null,0,0]
[{"$f":"'1 - Preenchimento do plano'!J36","v":0},"x","Levantamento de Solos",null,null,"LSO120",60,null,0,0]
[{"$f":"'1 - Preenchimento do plano'!J37","v":0},"x","Manejo do Solo",null,null,"MSO010",60,null,0,0]
[{"$f":"'1 - Preenchimento do plano'!J38","v":0},"x","Métodos de Análise em Microbiologia e Bioquímica do Solo",null,null,"MAMBIS",60,null,0,0]
[{"$f":"'1 - Preenchimento do plano'!J39","v":0},"x","Matéria Orgânica do Solo",null,null,"MATORS",60,null,0,{"$f":"A291","v":0}]
[{"$f":"'1 - Preenchimento do plano'!J40","v":0},"x","Mineralogia do Solo",null,null,"MINSOL",30,null,0,0]
[{"$f":"'1 - Preenchimento do plano'!J42","v":0},"x","Recuperação de Áreas Degradadas",null,null,"RECADE",60,null,0,0]
[{"$f":"'1 - Preenchimento do plano'!J43","v":0},"x","Relação Planta Microrganismos",null,null,"REPLAM",60,null,0,{"$f":"A294","v":0}]
[{"$f":"'1 - Preenchimento do plano'!J44","v":0},"x","Relação Solo-Planta",null,null,{"$f":"F46","v":"RESOLP"},30,null,0,0]
[{"$f":"'1 - Preenchimento do plano'!J45","v":0},"x","Uso e Conservação do Solo",null,null,{"$f":"F47","v":"UCS070"},60,null,0,0]
[{"$f":"'1 - Preenchimento do plano'!J46","v":0},"x","Técnicas de Análise Química de Solo e Tecido Vegetal",null,null,{"$f":"F48","v":"TST170"},60,null,0,0]
[{"$f":"'1 - Preenchimento do plano'!J47","v":0},"x","Tópicos Especiais em Ciência do Solo - TECS",null,null,{"$f":"F49","v":"TES160"},30,null,0,0]
[{"$f":"'1 - Preenchimento do plano'!J48","v":0},"x",{"$f":"C50","v":"TECS - Análise Estatística de Dados Utilizando o Programa SAS"},null,null,{"$f":"F50","v":"TESAED"},30,null,{"$f":"I50","v":0},{"$f":"A299","v":0}]
[{"$f":"'1 - Preenchimento do plano'!J49","v":0},"x","TECS - Biologia do Solo",null,null,{"$f":"F51","v":"TESBSO"},30,null,0,0]
[{"$f":"'1 - Preenchimento do plano'!J50","v":0},"x","TECS - Dinâmica de fósforo no solo e ambiente",null,null,"TESDFS",30,null,0,{"$f":"A301","v":0}]
[{"$f":"'1 - Preenchimento do plano'!J51","v":0},"x","TECS - Estatística Aplicada ao Estudo de Caso",null,null,{"$f":"F53","v":"TESEAC"},30,null,0,0]
[{"$f":"'1 - Preenchimento do plano'!J52","v":0},"x","TECS - Etnopedologia",null,null,{"$f":"F54","v":"TESETN"},30,null,0,0]
[{"$f":"'1 - Preenchimento do plano'!J53","v":0},"x","TECS - Extensão Universitária em C. A.agrárias - Projeto Rondon",null,null,{"$f":"F55","v":"TECSPR"},30,null,0,0]
[{"$f":"'1 - Preenchimento do plano'!J54","v":0},"x","TECS - Fauna Edáfica",null,null,{"$f":"F56","v":"TESFAE"},30,null,0,0]
[{"$f":"'1 - Preenchimento do plano'!J55","v":0},"x","TECS - Física do Solo",null,null,{"$f":"F57","v":"TESFIS"},30,null,0,0]
[{"$f":"'1 - Preenchimento do plano'!J56","v":0},"x","TECS - Física /Compactação",null,null,{"$f":"F58","v":"TESFIC"},30,null,0,0]
[{"$f":"'1 - Preenchimento do plano'!J57","v":0},"x","TECS - Geoquímica de Metais Pesados",null,null,{"$f":"F59","v":"TESGMP"},30,null,0,0]
[{"$f":"'1 - Preenchimento do plano'!J58","v":0},"x","TECS - Geoquímica de Metais Pesados e Metalóides",null,null,{"$f":"F60","v":"TESGMM"},30,null,0,0]
[{"$f":"'1 - Preenchimento do plano'!J59","v":0},"x","TECS -Hidrologia",null,null,{"$f":"F61","v":"TESHDR"},30,null,0,0]
[{"$f":"'1 - Preenchimento do plano'!J60","v":0},"x","TECS - Levantamento e Classificação do Solo",null,null,{"$f":"F62","v":"TESLCS"},30,null,0,0]
[{"$f":"'1 - Preenchimento do plano'!J61","v":0},"x","TECS - Métodos Analíticos de Biologia do Solo",null,null,{"$f":"F63","v":"TESMAB"},30,null,0,0]
[{"$f":"'1 - Preenchimento do plano'!J62","v":0},"x","TECS - Métodos Analíticos em Microbiologia do Solo",null,null,{"$f":"F64","v":"TESMAM"},30,null,0,0]
[{"$f":"'1 - Preenchimento do plano'!J63","v":0},"x","TECS - Mineralogia das Argilas",null,null,{"$f":"F65","v":"TESMIA"},30,null,0,0]
[{"$f":"'1 - Preenchimento do plano'!J64","v":0},"x","TECS - Mineralogia do Solo",null,null,{"$f":"F66","v":"TESMIS"},30,null,0,0]
[{"$f":"'1 - Preenchimento do plano'!J65","v":0},"x","TECS - Nivelamento em Química",null,null,{"$f":"F67","v":"TESNIQ"},30,null,0,0]
[{"$f":"'1 - Preenchimento do plano'!J66","v":0},"x","TECS - Nutrição Mineral de Frutíferas",null,null,{"$f":"F68","v":"TESNMF"},30,null,0,0]
[{"$f":"'1 - Preenchimento do plano'!J67","v":0},"x","TECS - Pesquisas em Erosão Hídrica",null,null,{"$f":"F69","v":"TESPEH"},30,null,0,0]
[{"$f":"'1 - Preenchimento do plano'!J68","v":0},"x","TECS - Técnicas de Pesquisa em Erosão",null,null,{"$f":"F70","v":"TESTPE"},30,null,0,0]
[{"$f":"'1 - Preenchimento do plano'!J69","v":0},"x","TECS - Técnicas de Redação e de Apresentação de Trabalhos Científicos",null,null,{"$f":"F71","v":"TESTRT"},30,null,0,0]
[{"$f":"'1 - Preenchimento do plano'!J70","v":0},"x","TECS - Uso e Conservação do Solo",null,null,{"$f":"F72","v":"TESUCS"},30,null,0,0]
[{"$f":"'1 - Preenchimento do plano'!J71","v":0},"x","TECS (Análise de Dados em Ecologia - Modelos Lineares General.)",null,null,{"$f":"F73","v":"TCSADE"},30,null,0,0]
[{"$f":"'1 - Preenchimento do plano'!J72","v":0},"x","TECS - Aplicada à Produção Florestal",null,null,{"$f":"F74","v":"TECSAP"},30,null,0,0]
[{"$f":"'1 - Preenchimento do plano'!J73","v":0},"x","TECS -  Avaliação de Risco Ecológico de Locais Contaminados",null,null,{"$f":"F75","v":"TESARC"},30,null,0,{"$f":"A324","v":0}]
[{"$f":"'1 - Preenchimento do plano'!J74","v":0},"x","TECS - Ecotoxicologia e Análise de Risco Ecológico",null,null,{"$f":"F76","v":"TESEAR"},30,null,0,0]
[{"$f":"'1 - Preenchimento do plano'!J75","v":0},"x","TECS - A Utilização de Ensaios em Mesocosmos como Ferram...",null,null,{"$f":"F77","v":"TCSUEM"},30,null,0,0]
[{"$f":"'1 - Preenchimento do plano'!J76","v":0},"x","TECS - Métodos de Análises Físicas",null,null,{"$f":"F78","v":"TESMAF"},30,null,0,0]
[{"$f":"'1 - Preenchimento do plano'!J80","v":0},"x","Estatística - Nivelamento",null,null,{"$f":"F79","v":"ESTATI"},30,null,0,0]
[{"$f":"'1 - Preenchimento do plano'!J81","v":0},"x","Redação e Apresentação de Trabalhos Científicos",null,null,"REDATC",30,null,0,0]
[{"$f":"'1 - Preenchimento do plano'!J82","v":0},"x","Estatística Experimental e Análise Multivariada",null,null,"ESTEAM",60,null,0,0]
[{"$f":"'1 - Preenchimento do plano'!J83","v":0},"x","Fundamentos do Manejo de Plantas de Lavoura",null,null,"FMAPLA",60,null,0,0]
[{"$f":"'1 - Preenchimento do plano'!J84","v":0},"x","Metodologia do Ensino Superior",null,null,"METENS",60,null,0,0]
[{"$f":"'1 - Preenchimento do plano'!J85","v":0},"x","Modelos Biométricos Aplicados à Agronomia",null,null,"MOBAPA",60,null,0,0]
[0,"x","Elaboração de dissertação",null,null,{"$f":"F85","v":"DISSER"},0,null,{"$f":"I85","v":0},0]
[{"$f":"'1 - Preenchimento do plano'!M93","v":0},"x",{"$f":"'1 - Preenchimento do plano'!C93","v":0},null,null,"x","x",null,{"$f":"'1 - Preenchimento do plano'!O93","v":0},0]
[{"$f":"'1 - Preenchimento do plano'!M94","v":0},"x",{"$f":"'1 - Preenchimento do plano'!C94","v":0},null,null,"x","x",null,{"$f":"'1 - Preenchimento do plano'!O94","v":0},0]
[{"$f":"'1 - Preenchimento do plano'!M95","v":0},"x",{"$f":"'1 - Preenchimento do plano'!C95","v":0},null,null,"x","x",null,{"$f":"'1 - Preenchimento do plano'!O95","v":0},0]
[{"$f":"'1 - Preenchimento do plano'!M96","v":0},"x",{"$f":"'1 - Preenchimento do plano'!C96","v":0},null,null,"x","x",null,{"$f":"'1 - Preenchimento do plano'!O96","v":0},0]
[{"$f":"'1 - Preenchimento do plano'!M97","v":0},"x",{"$f":"'1 - Preenchimento do plano'!C97","v":0},null,null,"x","x",null,{"$f":"'1 - Preenchimento do plano'!O97","v":0},0]
[{"$f":"'1 - Preenchimento do plano'!M98","v":0},"x",{"$f":"'1 - Preenchimento do plano'!C98","v":0},null,null,"x","x",null,{"$f":"'1 - Preenchimento do plano'!O98","v":0},0]
[null,null,null,null,null,"TOTAL:",null,null,{"$f":"'1 - Preenchimento do plano'!L99","v":0},1]

{"sheet":"3 - Justificativa membro ext.","index":3,"n_rows":19,"n_cols":9,"rows_kept":19,"cut":false,"hidden":false,"merged":[]}
[]
[]
[]
[]
[]
[]
[]
[]
[]
[]
[]
[]
[]
[null,"Nome:",{"$f":"'1 - Preenchimento do plano'!C8","v":0},null,null,"Matrícula:",{"$f":"'1 - Preenchimento do plano'!C9","v":0}]
[]
[null,"Comitê de Orientação"]
[null,"Orientador:",{"$f":"'1 - Preenchimento do plano'!C12","v":0},null,null,"Ingresso:",{"$f":"'1 - Preenchimento do plano'!X10","v":0},"/",{"$f":"'1 - Preenchimento do plano'!X11","v":0}]
[null,"2º Membro:",{"$f":"'1 - Preenchimento do plano'!C13","v":0}]
[null,"3º Membro:",{"$f":"'1 - Preenchimento do plano'!C14","v":0}]